Cogmind - Beta 14 @@@ ROGUE MODE // 2024.09.11 @ 10:58:11 Player: Awoo-Bot Result: Destroyed by I6-RTF(R) with Subdweller Shrapnel Launcher Performance ------------- Evolutions (0) 0 Regions Visited (2) 400 Robots Destroyed (30) 150 Value Destroyed (760) 760 Prototype IDs (12) 240 Alien Tech Used (0) 0 Bonus (0) 0 TOTAL SCORE: 1550 Bonus ------- None Cogmind --------- Core Integrity 0/250 Matter 210/300 Energy 265/265 System Corruption 0% Temperature Cool (0) Movement Rolling (115) Ox1 Location -10/Subcaves Parts ------- > --- POWER (1) -------- Improved Ion Engine > --- PROPULSION (2) --- Compact Wheel Compact Wheel > --- UTILITY (2) ------ High-capacity Storage Unit Seismic Detector > --- WEAPON (2) ------- (None) > --- INVENTORY (20) --- Improved Ion Engine Meta Core Light Treads Spiked Treads Improved Heat Sink Improved Terrain Scanner Hacking Suite Improved EM Shotgun Light EM Pulse Cannon Heavy Assault Rifle Heavy Assault Rifle Heavy Battle Rifle Makeshift Shrapnel Gun Mining Laser Plasma Cutter Shrapnel Trap Piercing Trap Peak State ------------ > --- POWER ------------ Improved Ion Engine > --- PROPULSION ------- Compact Wheel Compact Wheel > --- UTILITY ---------- High-capacity Storage Unit Seismic Detector > --- WEAPON ----------- Light EM Pulse Cannon Heavy Battle Rifle > --- INVENTORY -------- Improved Ion Engine Meta Core Light Treads Spiked Treads Compact Wheel Improved Heat Sink Improved Terrain Scanner Hacking Suite Improved EM Shotgun Light EM Pulse Cannon Heavy Assault Rifle Heavy Assault Rifle Makeshift Shrapnel Gun Grenade Launcher Mining Laser Plasma Cutter Shrapnel Trap Piercing Trap [Rating: 16] Favorites ----------- Power Improved Ion Engine Engine Improved Ion Engine Propulsion Compact Wheel Treads Light Treads Wheel Compact Wheel Utility High-capacity Storage Unit Device Seismic Detector Storage High-capacity Storage Unit Weapon Light EM Pulse Cannon Energy Gun Improved EM Shotgun Energy Cannon Light EM Pulse Cannon Ballistic Gun Heavy Assault Rifle Launcher Grenade Launcher Special Weapon Mining Laser Build | -11 -10 -10 ------- Run | Yrd Mat Sub Slots Evolved . | . . . Power . | . . . Propulsion . | . . . Utility . | . . . Weapon . | . . . Parts Attached 49 | 6 26 17 Power 4 | 1 2 1 Engine 4 | 1 2 1 Core . | . . . Reactor . | . . . Propulsion 8 | 2 5 1 Treads 2 | . 2 . Leg . | . . . Wheel 6 | 2 3 1 Hover . | . . . Flight . | . . . Utility 4 | 1 3 . Device 2 | . 2 . Storage 2 | 1 1 . Processor . | . . . Hackware . | . . . Protection . | . . . Artifact . | . . . Weapon 33 | 2 16 15 Energy Gun 3 | . 2 1 Energy Cannon 10 | . 8 2 Ballistic Gun 14 | 2 6 6 Ballistic Cannon . | . . . Launcher 4 | . . 4 Special Weapon 2 | . . 2 Impact Weapon . | . . . Slashing Weapon . | . . . Piercing Weapon . | . . . Special Melee Weapon . | . . . Unidentified Prototypes 1 | . 1 . Parts Lost 2 | . . 2 Power . | . . . Propulsion . | . . . Utility . | . . . Weapon 2 | . . 2 Highest Loss Streak 2 | . . 2 To Critical Strikes . | . . . Average Slot Usage (%) 99 | . 98 99 Engine 14 | . 14 14 Wheel 27 | . 27 28 Device 13 | . 12 14 Storage 14 | . 14 14 Energy Gun 2 | . . 3 Energy Cannon 13 | . 13 13 Ballistic Gun 7 | . 13 3 Launcher 1 | . . 1 Special Weapon 2 | . . 5 Peak Build Rating 16 | 6 13 16 Average Rating 11 | 5 10 13 On Entrance 6 | . 6 13 Naked Turns . | . . . Heaviest Build 56 | 14 56 56 Greatest Support 32 | 32 32 32 Greatest Overweight (x) 3 | 2 3 1 Average Overweight (x) . | . . 1 Largest Inventory Capacity 20 | 8 20 20 Average Capacity 19 | 7 18 20 Most Carried 18 | 7 13 18 Average Carried 12 | 3 8 16 Final Capacity 20 | 8 20 20 Final Carried 17 | 7 13 17 Class Distribution -------------------- 100% | Mutant Dominant Class ---------------- Mutant | -10/Materials Mutant | -10/Subcaves Resources | -11 -10 -10 ----------- Run | Yrd Mat Sub Matter Collected 797 | 278 284 235 Remotely . | . . . Salvage Created 974 | 102 467 405 Parts 71 | 6 34 31 Haulers Intercepted . | . . . Recyclers Shooed 1 | . 1 . Parts Field Recycled . | . . . Retrieved Matter . | . . . Parts Self-Destructed 3 | . . 3 Prevented . | . . . Kills | -11 -10 -10 ------- Run | Yrd Mat Sub Combat Hostiles Destroyed 24 | . 14 10 Guns 5 | . 5 . Cannons 13 | . 8 5 AOE 5 | . 1 4 Classes Destroyed 7 | 2 4 1 Tunneler 1 | 1 . . Recycler 1 | 1 . . Operator 2 | . 2 . Watcher 2 | . 2 . Swarmer 9 | . 9 . Grunt 5 | . 5 . Subdweller 10 | . . 10 Best Kill Streak 6 | 2 6 2 Combat Bots Only 6 | . 6 2 Max Kills in Single Turn 2 | 1 2 1 Gunslinging . | . . . Exploded 1 | . 1 1 Melee . | . . . Uniques/NPCs Destroyed . | . . . Combat | -11 -10 -10 -------- Run | Yrd Mat Sub Hostile Shots Fired 78 | . 45 33 Missed 28 | . 14 14 Damage Taken 832 | . 274 558 Core 289 | . 60 229 Absorbed by Shields . | . . . Core Remaining (%) 100 | 100 . . Volleys Fired 183 | 3 44 136 Largest 2 | 2 2 2 Hottest 112 | 40 112 112 Shots Fired 204 | 6 60 138 Gun 31 | 6 20 5 Cannon 72 | . 40 32 Launcher 12 | . . 12 Special 89 | . . 89 Kinetic 29 | 6 18 5 Thermal 89 | . . 89 Explosive 12 | . . 12 Electromagnetic 74 | . 42 32 Robot Hit Streak 23 | 3 9 23 Robot Miss Streak 2 | 1 2 1 Penetration Max . | . . . Secondary Targets . | . . . Shots Hit Robots 75 | 4 39 32 Core Hits 42 | 2 22 18 Critical Kills . | . . . Critical Parts Destroyed . | . . . Critical Strikes . | . . . Melee Attacks . | . . . Impact . | . . . Slashing . | . . . Piercing . | . . . Sneak Attacks . | . . . Combat Hostiles . | . . . Follow-up Attacks . | . . . Damage Inflicted 2109 | 53 970 1086 Guns 220 | 53 167 . Cannons 1228 | . 678 550 Explosions 661 | . 125 536 Melee . | . . . Ramming . | . . . Kinetic 198 | 53 145 . Thermal 125 | . 125 . Explosive 536 | . . 536 Electromagnetic 1250 | . 700 550 Impact . | . . . Slashing . | . . . Piercing . | . . . Highest Corruption . | . . . Average Corruption . | . . . Corruption Purged . | . . . Corruption Blocked . | . . . Overload Shots . | . . . Overflow Damage 22 | . 22 . Projectiles 10 | . 10 . Explosions 12 | . 12 . Melee . | . . . Knockbacks . | . . . Impact . | . . . Kinetic . | . . . Secondary . | . . . Self-Inflicted Damage . | . . . Shots . | . . . Rammed . | . . . Targets Rammed . | . . . Kicked . | . . . Crushed . | . . . Highest Temperature 198 | . 198 7 Average Temperature 56 | . 58 5 Received Heat Transfer 159 | . 84 75 Siege Activations . | . . . Robots Corrupted 1 | . . 1 Combat Hostiles 1 | . . 1 Parts Fried 11 | . 4 7 Impact Corruptions . | . . . Robots Melted . | . . . Combat Hostiles . | . . . Parts Melted . | . . . Heat Transferred 200 | . 200 . Parts Sabotaged . | . . . Parts Stolen . | . . . Parts Stripped . | . . . Power Chain Reactions 2 | . 2 . Alert | -11 -10 -10 ------- Run | Yrd Mat Sub Peak Influence 194 | 10 194 . Initial 6 | . 6 . Average 46 | 3 49 . Maximum Alert Level . | . . . Low Security (%) 100 | 100 100 . Level 1 . | . . . Level 2 . | . . . Level 3 . | . . . Level 4 . | . . . Level 5 . | . . . High Security . | . . . Max Security . | . . . Squads Dispatched . | . . . Investigation . | . . . Extermination . | . . . Reinforcement . | . . . Assault . | . . . Garrison . | . . . Intercept . | . . . Searches Triggered . | . . . Construction Impeded . | . . . Haulers Reinforced . | . . . Active Scanning Responses . | . . . Cargo Convoy Interrupts . | . . . Stealth | -11 -10 -10 --------- Run | Yrd Mat Sub Distress Signals . | . . . Communications Jammed . | . . . Distress Signals . | . . . Times Spotted 37 | . 25 12 Peak Tracking Total 5 | . 5 2 Tactical Retreats 2 | . 1 1 Traps | -11 -10 -10 ------- Run | Yrd Mat Sub Traps Triggered 1 | . . 1 Indirectly . | . . . Trap Hack Attempts . | . . . Triggered . | . . . Disarmed . | . . . Reprogrammed . | . . . Reused . | . . . Traps Extracted . | . . . Installed . | . . . Triggered . | . . . Most Traps Carried 2 | . . 2 Machines | -11 -10 -10 ---------- Run | Yrd Mat Sub Machines Disabled 2 | . 1 1 Max in Single Turn 1 | . 1 1 Machines Repaired . | . . . Machines Dismantled . | . . . Machines Sabotaged . | . . . Overloaded Fab Kills . | . . . Hacking | -11 -10 -10 --------- Run | Yrd Mat Sub Machines Accessed 9 | . 7 2 Terminals 7 | . 7 . Fabricators . | . . . Repair Stations . | . . . Recycling Units . | . . . Scanalyzers . | . . . Garrison Access . | . . . Total Hacks 31 | . 25 6 Successful 24 | . 18 6 Failed 6 | . 6 . Catastrophic 1 | . 1 . Database Lockouts 1 | . 1 . Manual 24 | . 24 . Terminals 25 | . 25 . Fabricators . | . . . Repair Stations . | . . . Recycling Units . | . . . Scanalyzers . | . . . Garrison Access . | . . . Terminal Hacks 11 | . 5 6 Record 6 | . 1 5 Robot Analysis 1 | . 1 . Unreport Threat 2 | . 2 . Locate Traps 1 | . 1 . Derelict Proto ID Bank 1 | . . 1 Fabricator Hacks . | . . . Repair Station Hacks . | . . . Recycling Unit Hacks . | . . . Scanalyzer . | . . . Garrison Access Hacks . | . . . Unauthorized Hacks 13 | . 13 . Terminals 13 | . 13 . Botnet 7 | . 7 . Skim 6 | . 6 . Fabricators . | . . . Repair Stations . | . . . Recycling Units . | . . . Scanalyzers . | . . . Garrison Access . | . . . Data Cores Recovered 1 | . 1 . Used . | . . . Hacking Detections 7 | . 7 . Full Trace Events . | . . . Feedback Events . | . . . Feedback Blocked . | . . . Robot Schematics Acquired . | . . . Robots Built . | . . . Authchips . | . . . Time . | . . . Total Robot Build Rating . | . . . Part Schematics Acquired . | . . . Parts Built . | . . . Authchips . | . . . Time . | . . . Total Part Build Rating . | . . . Parts Repaired . | . . . Time . | . . . Parts Recycled . | . . . Recycled Matter . | . . . Retrieved Matter . | . . . Retrieved Components . | . . . Parts Scanalyzed . | . . . Part Schematics Acquired . | . . . Parts Damaged . | . . . Bothacking | -11 -10 -10 ------------ Run | Yrd Mat Sub Used RIF Installer . | . . . Robots Hacked . | . . . Non-combat . | . . . Combat . | . . . Robot Hacks Applied . | . . . Relay Couplers Released . | . . . Fabnet Peak Effective % . | . . . Robots Rewired . | . . . Allies Hacked . | . . . Hacks Repelled . | . . . Allies | -11 -10 -10 -------- Run | Yrd Mat Sub Total Allies . | . . . Largest Group . | . . . Highest-Rated Group . | . . . Highest-Rated Ally . | . . . Total Orders . | . . . Ally Attacks . | . . . Total Damage . | . . . Kills . | . . . Allies Corrupted . | . . . Allies Melted . | . . . Intel | -11 -10 -10 ------- Run | Yrd Mat Sub Robot Analysis Total 1 | . 1 . Derelict Logs Recovered . | . . . Drone Launches . | . . . Drone Recoveries . | . . . Exploration | -11 -10 -10 ------------- Run | Yrd Mat Sub Turns Passed 3229 | 90 1325 1814 Spaces Moved 2097 | 68 893 1136 Core 10 | 10 . . Treads . | . . . Legs . | . . . Wheels 2087 | 58 893 1136 Hover . | . . . Flight . | . . . Fastest Speed 50 | 50 100 115 Average Speed 113 | 96 113 115 Slowest Speed 150 | 150 145 115 Overloaded Moves . | . . . Propulsion Burnouts . | . . . Robots Hopped . | . . . Cave-ins Triggered . | . . . Exploration Rate (%) 55 | 5 97 63 Regions Visited 2 Branch Regions 1 Pre-discovered Areas 1 | . 1 . Known Exits Taken . | . . . Unknown Exits Taken 2 | 1 1 . Scrap Searched 7 | . . 7 Spaces Dug . | . . . Terrain Destroyed 50 | . 3 47 Melee . | . . . Projectile . | . . . AOE 50 | . 3 47 Terrain Rammed . | . . . Walls Destroyed . | . . . Machines Disabled . | . . . Actions | -11 -10 -10 --------- Run | Yrd Mat Sub Total 2542 | 83 1141 1318 Wait 177 | . 156 21 Move 2095 | 67 892 1136 Hop . | . . . Pick Up 23 | 7 10 6 Fast Attach 11 | 6 5 . Attach 2 | . 1 1 Detach 1 | . 1 . Swap 36 | . 20 16 Drop 14 | . 12 2 Fire 183 | 3 44 136 Melee . | . . . Ram . | . . . Kick . | . . . Crush . | . . . Escape Stasis . | . . . Rewire . | . . . Trap . | . . . Miscellaneous . | . . . Route ------- -11/Scrapyard -10/Materials (discovered 6 exits: *Mat x3 / [*Min x2] / *Sub) -10/Subcaves (discovered 2 exits: *Mat / Rec) History --------- Turn | Location | Event 5 | -11/Scrapyard | Discovered new exit (range 14) 91 | -11/Scrapyard | Entered Materials 187 | -10/Materials | Discovered new exit (range 12) 306 | -10/Materials | Build established: Mutant 381 | -10/Materials | Discovered new exit (range 3) 579 | -10/Materials | Discovered new exit (range 8) 799 | -10/Materials | Central database locked down 833 | -10/Materials | Discovered new exit (range 14) 897 | -10/Materials | Discovered new exit (range 12) 969 | -10/Materials | Learned 2 Storage zone layouts 1041 | -10/Materials | Identified exit to Materials 1250 | -10/Materials | Learned location of 2 exits from Subcaves 1416 | -10/Materials | Entered Subcaves 1417 | -10/Subcaves | Identified exit to Recycling 1417 | -10/Subcaves | Identified exit to Materials 1512 | -10/Subcaves | Visited Clippyterm 1516 | -10/Subcaves | Learned Factory fabricator intel 1516 | -10/Subcaves | Learned Research machine intel 1805 | -10/Subcaves | Visited 4L-MR0's lab 1839 | -10/Subcaves | Found Meta Core 1873 | -10/Subcaves | A swath of the cavern ceiling suddenly collapsed 2694 | -10/Subcaves | Core integrity fell below 50% 3015 | -10/Subcaves | Ambushed by Subdwellers from Twisted Machinery 3227 | -10/Subcaves | Core integrity fell below 20% 3230 | -10/Subcaves | Destroyed by I6-RTF(R) with Subdweller Shrapnel Launcher Last Messages --------------- 02889_ BX-CXD(R) system terminally corrupted. 02889_ Sub. Optics fried. 02889_ Sub. Machine Gun fried. 02889_ Disposable Heat Sink fried. 02890_ NP-6CR(R) destroyed. 02899_ Acquired 45 matter. 02980_ OZ-BVE(R) destroyed. 02984_ BL-THK(R) misfires. 02990_ Subatomizers dissect the Corrupted Sub. Laser. 02990_ BL-THK(R) misfires. 02992_ Sub. Optics fried. 02992_ Disposable Heat Sink fried. 02992_ BL-THK(R) destroyed. 03020_ XU-DQJ(R) destroyed. 03022_ GC-O2C(R) destroyed. 03030_ Dropped Com. Wheel. 03214_ Subatomizers dissect the Sub. Monowheel. 03225_ VA-1O6(R) destroyed. 03226_ Lgt. EM Pulse Cannon destroyed. 03230_ Grenade Launcher destroyed. Map ----- +----------------------------------------------------+ | ??????????????????????????????????????##???#?# | | ???????????????????????????????????????????? | | ??????????????????????????????????????????# | | ??????????????????????????????????????????# ## | | ?????????????????????????????????????????# #?### | | ?????????????????????????????????????????## #????# | | ??????????????????????????????????????????##????## | | ???????????????????????????????????????????????#" | | ?????????????????????????????????????????????????? | | ?????????????????????????????????????????????????? | | ????????????????????????#?##?????????????????????? | | ?????????????????????# # # ?????????????????????? | | ?????????????????? ?????????????????????? | | ?????????????????? R ?? #????????????????? | | ?????????????? ?# = ## #???????????????? | | ?????????????? # ! ;;# ???????????????? | | ??????????????? # ! # ????????####??## | | ???????????????? # ?? ???????##""####" | | ????????????????? ??# ??????## """""" | | ?????????????????? ; ### #??##### """"""" | | ??????????????????? ;;## #### # """" | | ????????????????????; ; ;;# ""## | | ?????????????????????# ;;# = " " | | ?????????????????????# ;### ##### ## #[ | | ????????????????????## ; ### ##???####### | | ????????????????????#; @ ;### =&! ##?????##??? | | ????????????????????# ; [ #????# ###? | | ????????????????????#; "%* ##??# #? | | ????????????????????##;; " ### #?? | | ?????????????????????##;; & & ##? | | ??????????????????????#### "" %&[ "" ## | | ?????????????????????????# """"&& "" ## # | | ????????????????????????#"" """ "" #? ## | | ???????????????????????? """"""" ""#### ## ## | | ???????????????????????? """""""""##??# ## | | ????????????????????????# """""####???# ### | | ?????????????????????????????""##?????## #### | | ????????????????????????????????????### #?## | | ????????????????????????????????????#"" ### | | ????????????????????????????????????# | | ????????????????????????????????????# | | ???????????????????????????????????## | | ???????????????????????????????????# #### | | ???????????????????????????????????# ##??## | | ???????????????????????????????????## #????# | | ?????????????????????????????#####?## ##????# | | ?????????????????????????????# ### ##?????# | | ?????????????????????????????# ##??????? | | ?????????????????????????????## ###???????? | | ??????????????????????????????## #?????????? | +----------------------------------------------------+ Best States ------------- Heat Dissipation 25 Energy Generation 12 Energy Capacity 265 Matter Stores 300 Matter Capacity 300 Sight Range 16 Terrain Scan Density 10 Evasion (%) 40 Recoil Reduction 1 Item Schematics ----------------- None Robot Schematics ------------------ None Fabricated ------------ Nothing Alien Tech Used ----------------- None Achievements -------------- None Challenges ------------ None Game ------ Seed FrostAlphaCoupler Manual? 0 Play Time 00:41:53 Cumulative 70.8 hours Start 2024.09.11 @ 10:19:12 End 2024.09.11 @ 10:58:11 Sessions 1 Manual Loads 0 Difficulty Rogue Special Mode None Game No. 115 Rogue 87 Adventurer 28 Explorer 0 Win Type - Total 0 Types 0/0/0/0/0/0/0/0/0 Lore% 15 Gallery% 28 Achievement% 31 Wizard Run 0 Options --------- Layout 0 ASCII 0 Keyboard 0 Movement Mouse Keybinds 0 Fullscreen 1 Font 28/Terminus Map View 84x54 Zoom Use 0% Tactical HUD 1 Map Filters NONE Filters NONE Steam 1 RUN: 841d48f5-2a3f-48e5-a634-2fd4b4cdf955